[Event "*** Titled Tuesday Blitz"]
[Site "Chess.com"]
[Date "2020.05.19"]
[Round "4"]
[White "InitiatingASC"]
[Black "Lali-Rustavi"]
[Result "1-0"]
[WhiteElo "2355"]
[BlackElo "1886"]
[TimeControl "180+1"]
[EndTime "12:35:50 PDT"]
[Termination "InitiatingASC won by resignation"]

1. Nf3 {[%clk 0:03:00.9]} 1... d5 {[%clk 0:02:58.8]} 2. b3 {[%clk 0:03:00.7]}
2... Nf6 {[%clk 0:02:58.7]} 3. Bb2 {[%clk 0:03:00.9]} 3... c6 {[%clk 0:02:58.5]}
4. e3 {[%clk 0:03:01.4]} 4... Bf5 {[%clk 0:02:58.2]} 5. c4 {[%clk 0:03:01]} 5...
e6 {[%clk 0:02:56.8]} 6. cxd5 {[%clk 0:02:59.8]} 6... cxd5 {[%clk 0:02:56.8]} 7.
Be2 {[%clk 0:03:00.4]} 7... Bb4 {[%clk 0:02:48.6]} 8. O-O {[%clk 0:02:59.7]}
8... O-O {[%clk 0:02:47.8]} 9. a3 {[%clk 0:02:58.9]} 9... Bd6 {[%clk 0:02:47.4]}
10. d3 {[%clk 0:02:59.2]} 10... Nc6 {[%clk 0:02:47.3]} 11. Nbd2 {[%clk
0:02:59.4]} 11... Rc8 {[%clk 0:02:46.1]} 12. Rc1 {[%clk 0:02:58.9]} 12... a6
{[%clk 0:02:44.5]} 13. b4 {[%clk 0:02:51.5]} 13... b5 {[%clk 0:02:32.3]} 14. Qb3
{[%clk 0:02:50.1]} 14... Qb6 {[%clk 0:02:30.3]} 15. Rc2 {[%clk 0:02:42.1]} 15...
Rc7 {[%clk 0:02:29.6]} 16. Rfc1 {[%clk 0:02:41.8]} 16... Rfc8 {[%clk 0:02:30.1]}
17. Nf1 {[%clk 0:02:38.7]} 17... Ne5 {[%clk 0:02:17]} 18. Nxe5 {[%clk
0:02:32.7]} 18... Bxe5 {[%clk 0:02:09.6]} 19. Bxe5 {[%clk 0:02:31.6]} 19... Nd7
{[%clk 0:02:04.3]} 20. Bxc7 {[%clk 0:02:30.4]} 1-0

[Event "*** Titled Tuesday Blitz"]
[Site "Chess.com"]
[Date "2020.05.19"]
[Round "4"]
[White "Semen_Khanin"]
[Black "Tsyhanchuk_Stanislav"]
[Result "1-0"]
[WhiteElo "2657"]
[BlackElo "2480"]
[TimeControl "180+1"]
[EndTime "12:36:13 PDT"]
[Termination "Semen_Khanin won by checkmate"]

1. e4 {[%clk 0:03:00.9]} 1... c5 {[%clk 0:02:59.6]} 2. Nf3 {[%clk 0:03:00.6]}
2... Nc6 {[%clk 0:02:59.4]} 3. d4 {[%clk 0:03:00.8]} 3... cxd4 {[%clk
0:03:00.3]} 4. Nxd4 {[%clk 0:03:01.7]} 4... Qb6 {[%clk 0:03:00.5]} 5. Nb3 {[%clk
0:02:59.9]} 5... Nf6 {[%clk 0:02:59.4]} 6. Nc3 {[%clk 0:02:59.8]} 6... e6 {[%clk
0:02:59.2]} 7. a3 {[%clk 0:03:00.4]} 7... a6 {[%clk 0:02:58.3]} 8. Be3 {[%clk
0:02:59.7]} 8... Qc7 {[%clk 0:02:57.4]} 9. f4 {[%clk 0:02:59.8]} 9... d6 {[%clk
0:02:53.2]} 10. g4 {[%clk 0:02:59.9]} 10... Be7 {[%clk 0:02:53.1]} 11. g5 {[%clk
0:02:59.5]} 11... Nd7 {[%clk 0:02:53.3]} 12. h4 {[%clk 0:02:59.7]} 12... b5
{[%clk 0:02:52.8]} 13. Bg2 {[%clk 0:02:59.2]} 13... Bb7 {[%clk 0:02:51.8]} 14.
h5 {[%clk 0:02:59.5]} 14... O-O-O {[%clk 0:02:46.6]} 15. Qe2 {[%clk 0:02:55.8]}
15... Nc5 {[%clk 0:02:46]} 16. O-O-O {[%clk 0:02:48.3]} 16... Nxb3+ {[%clk
0:02:44.1]} 17. cxb3 {[%clk 0:02:48.4]} 17... b4 {[%clk 0:02:41.2]} 18. axb4
{[%clk 0:02:45.3]} 18... Nxb4 {[%clk 0:02:42.1]} 19. Kb1 {[%clk 0:02:45]} 19...
Kb8 {[%clk 0:02:40.6]} 20. Qf2 {[%clk 0:02:43]} 20... Rc8 {[%clk 0:02:29.2]} 21.
Rc1 {[%clk 0:02:40.9]} 21... Qd7 {[%clk 0:02:20]} 22. Na4 {[%clk 0:02:29.6]}
22... Qb5 {[%clk 0:01:56.4]} 23. Ba7+ {[%clk 0:02:26.8]} 23... Ka8 {[%clk
0:01:50.8]} 24. Nb6+ {[%clk 0:02:26.7]} 24... Kxa7 {[%clk 0:01:51.6]} 25. Nxc8+
{[%clk 0:02:26.5]} 25... Kb8 {[%clk 0:01:52]} 26. Qa7# {[%clk 0:02:26.5]} 1-0

[Event "*** Titled Tuesday Blitz"]
[Site "Chess.com"]
[Date "2020.05.19"]
[Round "4"]
[White "kleinebeer98"]
[Black "Mitronych"]
[Result "0-1"]
[WhiteElo "2661"]
[BlackElo "2446"]
[TimeControl "180+1"]
[EndTime "12:36:36 PDT"]
[Termination "Mitronych won by resignation"]

1. e4 {[%clk 0:03:00.9]} 1... c5 {[%clk 0:02:59.9]} 2. b4 {[%clk 0:03:00.1]}
2... b6 {[%clk 0:02:59.6]} 3. bxc5 {[%clk 0:03:00.1]} 3... bxc5 {[%clk
0:03:00.5]} 4. Nc3 {[%clk 0:03:00.6]} 4... Nc6 {[%clk 0:02:59.8]} 5. Nf3 {[%clk
0:02:59.6]} 5... e6 {[%clk 0:02:58.8]} 6. Bc4 {[%clk 0:02:51.1]} 6... Rb8 {[%clk
0:02:58.5]} 7. O-O {[%clk 0:02:50.3]} 7... Nge7 {[%clk 0:02:56.7]} 8. Re1 {[%clk
0:02:42.5]} 8... Ng6 {[%clk 0:02:56.5]} 9. d4 {[%clk 0:02:35.2]} 9... cxd4
{[%clk 0:02:57.4]} 10. Nxd4 {[%clk 0:02:30.3]} 10... Nce5 {[%clk 0:02:53.3]} 11.
Bf1 {[%clk 0:02:21.9]} 11... Bb4 {[%clk 0:02:48.6]} 12. Bd2 {[%clk 0:02:19.5]}
12... Bc5 {[%clk 0:02:46.7]} 13. Be3 {[%clk 0:02:17.6]} 13... Bb6 {[%clk
0:02:39.8]} 14. f4 {[%clk 0:02:06.8]} 14... Ba5 {[%clk 0:02:34.7]} 15. Bd2
{[%clk 0:01:57.9]} 15... Nc6 {[%clk 0:02:31.1]} 16. Nxc6 {[%clk 0:01:51.3]}
16... dxc6 {[%clk 0:02:28.4]} 17. Bd3 {[%clk 0:01:50.6]} 17... Qd4+ {[%clk
0:02:24.7]} 18. Kh1 {[%clk 0:01:37.3]} 18... Bxc3 {[%clk 0:02:24.5]} 19. Be3
{[%clk 0:01:24.4]} 19... Qa4 {[%clk 0:02:24.1]} 20. Rb1 {[%clk 0:01:23.4]} 20...
Rxb1 {[%clk 0:02:23]} 0-1

[Event "*** Titled Tuesday Blitz"]
[Site "Chess.com"]
[Date "2020.05.19"]
[Round "4"]
[White "vova-79"]
[Black "Bagirova"]
[Result "1-0"]
[WhiteElo "2424"]
[BlackElo "2183"]
[TimeControl "180+1"]
[EndTime "12:36:39 PDT"]
[Termination "vova-79 won by resignation"]

1. d4 {[%clk 0:03:00.9]} 1... Nf6 {[%clk 0:02:58.7]} 2. Nf3 {[%clk 0:03:00]}
2... g6 {[%clk 0:02:56.6]} 3. Bf4 {[%clk 0:02:59.7]} 3... Bg7 {[%clk 0:02:52.6]}
4. e3 {[%clk 0:03:00.2]} 4... O-O {[%clk 0:02:50.3]} 5. Be2 {[%clk 0:03:00.4]}
5... d6 {[%clk 0:02:49.2]} 6. O-O {[%clk 0:03:00.4]} 6... Bg4 {[%clk 0:02:45.6]}
7. h3 {[%clk 0:03:00]} 7... Bxf3 {[%clk 0:02:43.5]} 8. Bxf3 {[%clk 0:03:00.9]}
8... c6 {[%clk 0:02:42.8]} 9. c4 {[%clk 0:03:00.6]} 9... Nbd7 {[%clk 0:02:41.3]}
10. Nc3 {[%clk 0:02:59.7]} 10... a6 {[%clk 0:02:37.9]} 11. Bg3 {[%clk
0:02:57.8]} 11... Rc8 {[%clk 0:02:33.5]} 12. Rc1 {[%clk 0:02:49.8]} 12... b5
{[%clk 0:02:32.5]} 13. b3 {[%clk 0:02:45.7]} 13... Nb6 {[%clk 0:02:27.5]} 14.
Qe2 {[%clk 0:02:34.6]} 14... d5 {[%clk 0:02:22.1]} 15. cxd5 {[%clk 0:02:27.4]}
15... Nfxd5 {[%clk 0:02:20.1]} 16. Ne4 {[%clk 0:02:26.1]} 16... h6 {[%clk
0:02:11.1]} 17. Nc5 {[%clk 0:02:25]} 17... f5 {[%clk 0:02:10.4]} 18. Ne6 {[%clk
0:02:14.7]} 18... Qe8 {[%clk 0:02:10.3]} 19. Nxf8 {[%clk 0:02:13.6]} 19... Qxf8
{[%clk 0:02:10.8]} 20. e4 {[%clk 0:01:59.9]} 20... fxe4 {[%clk 0:01:56.9]} 21.
Qxe4 {[%clk 0:01:56.3]} 21... Be5 {[%clk 0:01:57.8]} 22. Bxe5 {[%clk 0:01:49.7]}
1-0

[Event "*** Titled Tuesday Blitz"]
[Site "Chess.com"]
[Date "2020.05.19"]
[Round "4"]
[White "keepitcool9499"]
[Black "GodDMuhammad"]
[Result "1-0"]
[WhiteElo "2460"]
[BlackElo "2284"]
[TimeControl "180+1"]
[EndTime "12:36:51 PDT"]
[Termination "keepitcool9499 won by resignation"]

1. d4 {[%clk 0:03:00.9]} 1... Nf6 {[%clk 0:02:57.2]} 2. c4 {[%clk 0:03:01.2]}
2... e6 {[%clk 0:02:54]} 3. Nc3 {[%clk 0:03:00.9]} 3... d5 {[%clk 0:02:54.3]} 4.
Nf3 {[%clk 0:03:00.6]} 4... Be7 {[%clk 0:02:52.6]} 5. e3 {[%clk 0:03:01.2]} 5...
O-O {[%clk 0:02:46.1]} 6. Bd3 {[%clk 0:03:01.5]} 6... b6 {[%clk 0:02:45.5]} 7.
O-O {[%clk 0:03:01.6]} 7... Bb7 {[%clk 0:02:45.6]} 8. cxd5 {[%clk 0:03:01.9]}
8... Nxd5 {[%clk 0:02:44.5]} 9. e4 {[%clk 0:03:01.8]} 9... Nxc3 {[%clk
0:02:42.7]} 10. bxc3 {[%clk 0:03:02.7]} 10... Nd7 {[%clk 0:02:42.1]} 11. Be3
{[%clk 0:03:02]} 11... c5 {[%clk 0:02:41.4]} 12. Rc1 {[%clk 0:03:00.3]} 12... c4
{[%clk 0:02:35.4]} 13. Bb1 {[%clk 0:02:54.6]} 13... b5 {[%clk 0:02:29.3]} 14.
Nd2 {[%clk 0:02:45.2]} 14... Qc7 {[%clk 0:02:22.5]} 15. Qh5 {[%clk 0:02:34.2]}
15... g6 {[%clk 0:02:21.9]} 16. Qh3 {[%clk 0:02:29.5]} 16... Rfd8 {[%clk
0:02:17.7]} 17. f4 {[%clk 0:02:23.6]} 17... f5 {[%clk 0:02:09.4]} 18. g4 {[%clk
0:02:15.1]} 18... fxe4 {[%clk 0:01:59.7]} 19. Bxe4 {[%clk 0:02:10.7]} 19... Nf6
{[%clk 0:01:57.4]} 20. Qf3 {[%clk 0:01:59.6]} 20... Nxe4 {[%clk 0:01:51.8]} 21.
Nxe4 {[%clk 0:02:00.5]} 21... Qc6 {[%clk 0:01:47.3]} 22. Ng5 {[%clk 0:01:56]}
22... Qd6 {[%clk 0:01:38.5]} 23. Qxb7 {[%clk 0:01:52.4]} 1-0

[Event "*** Titled Tuesday Blitz"]
[Site "Chess.com"]
[Date "2020.05.19"]
[Round "4"]
[White "AlexVanGog"]
[Black "jefferyx"]
[Result "1/2-1/2"]
[WhiteElo "2646"]
[BlackElo "2934"]
[TimeControl "180+1"]
[EndTime "12:36:57 PDT"]
[Termination "Game drawn by repetition"]

1. Nf3 {[%clk 0:03:00.9]} 1... c5 {[%clk 0:02:59.1]} 2. e3 {[%clk 0:03:00.1]}
2... Nf6 {[%clk 0:02:54.6]} 3. b3 {[%clk 0:02:59]} 3... g6 {[%clk 0:02:52.1]} 4.
Bb2 {[%clk 0:02:58.9]} 4... Bg7 {[%clk 0:02:53]} 5. c4 {[%clk 0:02:58.7]} 5...
O-O {[%clk 0:02:53.2]} 6. Be2 {[%clk 0:02:59.3]} 6... b6 {[%clk 0:02:53.5]} 7.
O-O {[%clk 0:02:59.8]} 7... Bb7 {[%clk 0:02:54]} 8. Nc3 {[%clk 0:02:59.6]} 8...
d5 {[%clk 0:02:53.9]} 9. Nxd5 {[%clk 0:02:58.9]} 9... Nxd5 {[%clk 0:02:54.8]}
10. Bxg7 {[%clk 0:02:59.3]} 10... Nxe3 {[%clk 0:02:52.4]} 11. fxe3 {[%clk
0:02:53.9]} 11... Kxg7 {[%clk 0:02:53.3]} 12. d4 {[%clk 0:02:53.3]} 12... e6
{[%clk 0:02:50]} 13. Qc1 {[%clk 0:02:43.6]} 13... Nc6 {[%clk 0:02:48]} 14. Qb2
{[%clk 0:02:43.1]} 14... Kg8 {[%clk 0:02:46.3]} 15. Rad1 {[%clk 0:02:42.5]}
15... Qe7 {[%clk 0:02:46]} 16. Kh1 {[%clk 0:02:27.1]} 16... Rad8 {[%clk
0:02:45.2]} 17. Rd2 {[%clk 0:02:15.7]} 17... Rd6 {[%clk 0:02:44.7]} 18. Rfd1
{[%clk 0:02:15.4]} 18... Rfd8 {[%clk 0:02:44.2]} 19. dxc5 {[%clk 0:02:15.4]}
19... Rxd2 {[%clk 0:02:43.4]} 20. Rxd2 {[%clk 0:02:15.9]} 20... Rxd2 {[%clk
0:02:36.7]} 21. Qxd2 {[%clk 0:02:16.5]} 21... bxc5 {[%clk 0:02:28]} 22. Kg1
{[%clk 0:02:15.5]} 22... Qf6 {[%clk 0:02:21.3]} 23. Qd7 {[%clk 0:02:12.3]} 23...
Na5 {[%clk 0:02:03.6]} 24. Qb5 {[%clk 0:02:04.3]} 24... Bxf3 {[%clk 0:02:02.7]}
25. Bxf3 {[%clk 0:02:01.5]} 25... Qa1+ {[%clk 0:02:03.6]} 26. Kf2 {[%clk
0:02:00.7]} 26... Qxa2+ {[%clk 0:02:03.1]} 27. Kg3 {[%clk 0:01:57.5]} 27... Nxb3
{[%clk 0:02:02]} 28. Qb8+ {[%clk 0:01:56.4]} 28... Kg7 {[%clk 0:02:01.6]} 29.
Qe5+ {[%clk 0:01:57]} 29... Kg8 {[%clk 0:02:01.1]} 30. Qb8+ {[%clk 0:01:56.8]}
30... Kg7 {[%clk 0:02:00.9]} 31. Qe5+ {[%clk 0:01:56.7]} 31... Kf8 {[%clk
0:02:01.8]} 32. Qd6+ {[%clk 0:01:49.7]} 32... Kg8 {[%clk 0:02:00.6]} 33. Qb8+
{[%clk 0:01:48.7]} 1/2-1/2

[Event "*** Titled Tuesday Blitz"]
[Site "Chess.com"]
[Date "2020.05.19"]
[Round "4"]
[White "Vaathi_Coming"]
[Black "ENEASZ"]
[Result "1-0"]
[WhiteElo "2873"]
[BlackElo "2532"]
[TimeControl "180+1"]
[EndTime "12:37:07 PDT"]
[Termination "Vaathi_Coming won by resignation"]

1. e4 {[%clk 0:03:00.9]} 1... d6 {[%clk 0:02:59.7]} 2. d4 {[%clk 0:03:00.8]}
2... Nf6 {[%clk 0:02:59]} 3. Nc3 {[%clk 0:03:01.1]} 3... e5 {[%clk 0:02:59.1]}
4. Nf3 {[%clk 0:03:01.2]} 4... Nbd7 {[%clk 0:02:58.5]} 5. g3 {[%clk 0:03:01.3]}
5... Be7 {[%clk 0:02:55.7]} 6. Bg2 {[%clk 0:03:01.8]} 6... O-O {[%clk
0:02:56.3]} 7. O-O {[%clk 0:03:02.3]} 7... c6 {[%clk 0:02:48.5]} 8. a4 {[%clk
0:03:01.6]} 8... b6 {[%clk 0:02:46.2]} 9. Re1 {[%clk 0:03:00.2]} 9... Re8 {[%clk
0:02:46.1]} 10. h3 {[%clk 0:02:58.3]} 10... Bf8 {[%clk 0:02:46.4]} 11. Be3
{[%clk 0:02:58.1]} 11... g6 {[%clk 0:02:37.3]} 12. Nd2 {[%clk 0:02:54.8]} 12...
Bg7 {[%clk 0:02:09.3]} 13. Nc4 {[%clk 0:02:54]} 13... Qc7 {[%clk 0:02:06.8]} 14.
f4 {[%clk 0:02:49.2]} 14... Ba6 {[%clk 0:01:54.5]} 15. Bf1 {[%clk 0:02:49.1]}
15... Bb7 {[%clk 0:01:32.7]} 16. dxe5 {[%clk 0:02:39.4]} 16... dxe5 {[%clk
0:01:33.6]} 17. Nd6 {[%clk 0:02:38.7]} 17... Red8 {[%clk 0:01:33.6]} 18. Bc4
{[%clk 0:02:38.7]} 18... Nc5 {[%clk 0:01:16]} 19. Bxc5 {[%clk 0:02:29.8]} 19...
bxc5 {[%clk 0:01:15.2]} 20. fxe5 {[%clk 0:02:30.2]} 20... Nd5 {[%clk 0:01:10]}
21. exd5 {[%clk 0:02:29.3]} 21... Rxd6 {[%clk 0:01:02.7]} 22. exd6 {[%clk
0:02:28.4]} 22... Qxd6 {[%clk 0:01:03.6]} 23. Ne4 {[%clk 0:02:25.9]} 23... Qe5
{[%clk 0:00:57.4]} 24. d6 {[%clk 0:02:26.3]} 1-0

[Event "*** Titled Tuesday Blitz"]
[Site "Chess.com"]
[Date "2020.05.19"]
[Round "4"]
[White "PetrolulSah"]
[Black "hellokostya"]
[Result "0-1"]
[WhiteElo "2184"]
[BlackElo "2405"]
[TimeControl "180+1"]
[EndTime "12:37:17 PDT"]
[Termination "hellokostya won by checkmate"]

1. d4 {[%clk 0:03:00.9]} 1... Nf6 {[%clk 0:02:56.7]} 2. c4 {[%clk 0:02:59.8]}
2... g6 {[%clk 0:02:55.3]} 3. Nc3 {[%clk 0:02:58.9]} 3... Bg7 {[%clk 0:02:53.3]}
4. e4 {[%clk 0:02:59]} 4... d6 {[%clk 0:02:50.9]} 5. Be2 {[%clk 0:02:59]} 5...
O-O {[%clk 0:02:47.8]} 6. Be3 {[%clk 0:02:58.7]} 6... Na6 {[%clk 0:02:46.4]} 7.
g4 {[%clk 0:02:54.7]} 7... c5 {[%clk 0:02:45.3]} 8. d5 {[%clk 0:02:52.4]} 8...
Qb6 {[%clk 0:02:43.7]} 9. Rb1 {[%clk 0:02:33]} 9... Nxg4 {[%clk 0:02:41.1]} 10.
Bxg4 {[%clk 0:02:18.5]} 10... Bxg4 {[%clk 0:02:39.6]} 11. Qxg4 {[%clk
0:02:12.8]} 11... Bxc3+ {[%clk 0:02:38.5]} 12. bxc3 {[%clk 0:02:11.9]} 12...
Qxb1+ {[%clk 0:02:37.4]} 13. Ke2 {[%clk 0:02:10.6]} 13... Qxa2+ {[%clk
0:02:33.7]} 14. Kf3 {[%clk 0:02:05.1]} 14... Qxc4 {[%clk 0:02:29]} 15. Bh6
{[%clk 0:01:59.2]} 15... f5 {[%clk 0:02:20.3]} 16. Qh4 {[%clk 0:01:42.5]} 16...
Qxe4+ {[%clk 0:02:14.1]} 17. Qxe4 {[%clk 0:01:42.5]} 17... fxe4+ {[%clk
0:02:15]} 18. Ke3 {[%clk 0:01:41.1]} 18... Rf5 {[%clk 0:02:05.8]} 19. Bf4 {[%clk
0:01:34.8]} 19... Raf8 {[%clk 0:02:00.9]} 20. Bg3 {[%clk 0:01:34.1]} 20... Rxd5
{[%clk 0:01:59.7]} 21. Nh3 {[%clk 0:01:27.6]} 21... Rd3+ {[%clk 0:01:48]} 22.
Kxe4 {[%clk 0:01:27.7]} 22... c4 {[%clk 0:01:41.4]} 23. Rb1 {[%clk 0:01:23.7]}
23... Nc5# {[%clk 0:01:38.9]} 0-1

[Event "*** Titled Tuesday Blitz"]
[Site "Chess.com"]
[Date "2020.05.19"]
[Round "4"]
[White "Roman_Ovetchkin"]
[Black "VerdeNotte"]
[Result "0-1"]
[WhiteElo "2626"]
[BlackElo "2829"]
[TimeControl "180+1"]
[EndTime "12:37:44 PDT"]
[Termination "VerdeNotte won by resignation"]

1. d4 {[%clk 0:03:00.9]} 1... Nf6 {[%clk 0:02:57.7]} 2. c4 {[%clk 0:02:24.1]}
2... g6 {[%clk 0:02:56.8]} 3. Nc3 {[%clk 0:02:23.5]} 3... Bg7 {[%clk 0:02:56.8]}
4. e4 {[%clk 0:02:23.4]} 4... d6 {[%clk 0:02:56.1]} 5. Nf3 {[%clk 0:02:23]} 5...
O-O {[%clk 0:02:56]} 6. Be2 {[%clk 0:02:23.5]} 6... Nbd7 {[%clk 0:02:55.7]} 7.
Be3 {[%clk 0:02:19]} 7... Ng4 {[%clk 0:02:52.4]} 8. Bg5 {[%clk 0:02:18.6]} 8...
h6 {[%clk 0:02:52.4]} 9. Bd2 {[%clk 0:02:18.5]} 9... e5 {[%clk 0:02:46]} 10. d5
{[%clk 0:02:18.3]} 10... f5 {[%clk 0:02:43.6]} 11. g3 {[%clk 0:02:06.8]} 11...
Nc5 {[%clk 0:02:35.9]} 12. exf5 {[%clk 0:01:54.7]} 12... Bxf5 {[%clk 0:02:23.3]}
13. Nh4 {[%clk 0:01:53.2]} 13... Nxf2 {[%clk 0:02:15.4]} 14. Kxf2 {[%clk
0:01:50.4]} 14... Bc2+ {[%clk 0:02:12]} 15. Kg2 {[%clk 0:01:50.9]} 15... Bxd1
{[%clk 0:02:11.3]} 16. Raxd1 {[%clk 0:01:51.5]} 16... g5 {[%clk 0:02:02.6]} 17.
Nf3 {[%clk 0:01:50.8]} 17... e4 {[%clk 0:02:00.1]} 18. Ne1 {[%clk 0:01:49.7]}
18... Bd4 {[%clk 0:01:51.9]} 19. Bg4 {[%clk 0:01:27.8]} 19... Rf2+ {[%clk
0:01:42.2]} 20. Kh3 {[%clk 0:01:28]} 20... Qf6 {[%clk 0:01:26.4]} 21. Nc2 {[%clk
0:01:23.3]} 21... h5 {[%clk 0:01:21.2]} 22. Bxh5 {[%clk 0:01:20.2]} 22... Qf5+
{[%clk 0:01:21.2]} 0-1

[Event "*** Titled Tuesday Blitz"]
[Site "Chess.com"]
[Date "2020.05.19"]
[Round "4"]
[White "WanderingPuppet"]
[Black "GameOverBro"]
[Result "1-0"]
[WhiteElo "2322"]
[BlackElo "2510"]
[TimeControl "180+1"]
[EndTime "12:37:44 PDT"]
[Termination "WanderingPuppet won by resignation"]

1. e4 {[%clk 0:03:00.9]} 1... d6 {[%clk 0:02:53.1]} 2. d4 {[%clk 0:02:54.1]}
2... Nf6 {[%clk 0:02:49.5]} 3. Nc3 {[%clk 0:02:53.7]} 3... e5 {[%clk 0:02:49.1]}
4. Nf3 {[%clk 0:02:53.2]} 4... Nbd7 {[%clk 0:02:49]} 5. g4 {[%clk 0:02:53.1]}
5... Nxg4 {[%clk 0:02:48.8]} 6. Rg1 {[%clk 0:02:51.1]} 6... Ngf6 {[%clk
0:02:48.6]} 7. Bg5 {[%clk 0:02:40.1]} 7... c6 {[%clk 0:02:44.6]} 8. Qe2 {[%clk
0:02:39.2]} 8... h6 {[%clk 0:02:44.7]} 9. Be3 {[%clk 0:02:38]} 9... b5 {[%clk
0:02:33.5]} 10. O-O-O {[%clk 0:02:11.2]} 10... Qa5 {[%clk 0:02:30.8]} 11. Nd2
{[%clk 0:01:25.7]} 11... exd4 {[%clk 0:02:16.6]} 12. Nb3 {[%clk 0:01:23.6]}
12... Qc7 {[%clk 0:02:00.6]} 13. Bxd4 {[%clk 0:01:20.3]} 13... Bb7 {[%clk
0:01:57.4]} 14. f4 {[%clk 0:01:18.3]} 14... O-O-O {[%clk 0:01:50.3]} 15. e5
{[%clk 0:01:13]} 15... Ne8 {[%clk 0:01:40.8]} 16. Bxa7 {[%clk 0:01:04.3]} 16...
b4 {[%clk 0:01:37.8]} 17. Na4 {[%clk 0:01:00.4]} 17... Qa5 {[%clk 0:01:35.1]}
18. Nxa5 {[%clk 0:00:59.8]} 1-0

[Event "*** Titled Tuesday Blitz"]
[Site "Chess.com"]
[Date "2020.05.19"]
[Round "4"]
[White "CalinGheorghiu"]
[Black "Aradej"]
[Result "0-1"]
[WhiteElo "2281"]
[BlackElo "2457"]
[TimeControl "180+1"]
[EndTime "12:37:50 PDT"]
[Termination "Aradej won by resignation"]

1. e4 {[%clk 0:03:00.9]} 1... d6 {[%clk 0:02:59.6]} 2. d4 {[%clk 0:03:00.1]}
2... Nf6 {[%clk 0:03:00]} 3. Nc3 {[%clk 0:03:00.2]} 3... e5 {[%clk 0:03:00.5]}
4. Nf3 {[%clk 0:02:58.7]} 4... Nbd7 {[%clk 0:02:59.9]} 5. Bc4 {[%clk 0:02:54.7]}
5... Be7 {[%clk 0:02:59.8]} 6. O-O {[%clk 0:02:50.6]} 6... O-O {[%clk
0:02:59.6]} 7. a4 {[%clk 0:02:47.7]} 7... c6 {[%clk 0:02:59.2]} 8. h3 {[%clk
0:02:46.4]} 8... h6 {[%clk 0:02:56.6]} 9. Re1 {[%clk 0:02:40.6]} 9... Re8 {[%clk
0:02:56.3]} 10. b3 {[%clk 0:02:38.1]} 10... Bf8 {[%clk 0:02:49.8]} 11. Bb2
{[%clk 0:02:38]} 11... exd4 {[%clk 0:02:49.3]} 12. Nxd4 {[%clk 0:02:37.2]} 12...
Ne5 {[%clk 0:02:47.5]} 13. Bf1 {[%clk 0:02:37]} 13... Bd7 {[%clk 0:02:47.2]} 14.
f4 {[%clk 0:02:33.4]} 14... Ng6 {[%clk 0:02:46.7]} 15. Qf3 {[%clk 0:02:31.1]}
15... Qc7 {[%clk 0:02:45.9]} 16. Rad1 {[%clk 0:02:25.6]} 16... a6 {[%clk
0:02:45.4]} 17. Nf5 {[%clk 0:02:02.4]} 17... d5 {[%clk 0:02:29.7]} 18. Bd3
{[%clk 0:01:51.7]} 18... Qxf4 {[%clk 0:02:15.9]} 19. exd5 {[%clk 0:01:41.2]}
19... Qxf3 {[%clk 0:02:15.7]} 20. gxf3 {[%clk 0:01:40]} 20... Nf4 {[%clk
0:02:16.3]} 21. Rxe8 {[%clk 0:01:25.7]} 21... Rxe8 {[%clk 0:02:09.2]} 22. dxc6
{[%clk 0:01:19.4]} 22... Bxc6 {[%clk 0:02:09.2]} 23. Ne4 {[%clk 0:01:04.8]}
23... Nxe4 {[%clk 0:02:08.8]} 24. fxe4 {[%clk 0:00:55]} 24... Nxh3+ {[%clk
0:02:08]} 25. Kh2 {[%clk 0:00:54.2]} 25... Ng5 {[%clk 0:02:07.5]} 26. Re1 {[%clk
0:00:39.4]} 26... Nf3+ {[%clk 0:02:07.2]} 0-1

[Event "*** Titled Tuesday Blitz"]
[Site "Chess.com"]
[Date "2020.05.19"]
[Round "4"]
[White "YellowJacek"]
[Black "j2806"]
[Result "1-0"]
[WhiteElo "2298"]
[BlackElo "2005"]
[TimeControl "180+1"]
[EndTime "12:37:51 PDT"]
[Termination "YellowJacek won by resignation"]

1. e4 {[%clk 0:03:00.9]} 1... c5 {[%clk 0:02:59.7]} 2. Nf3 {[%clk 0:02:58.7]}
2... d6 {[%clk 0:03:00]} 3. d4 {[%clk 0:02:58]} 3... cxd4 {[%clk 0:03:00.2]} 4.
Nxd4 {[%clk 0:02:58.9]} 4... Nf6 {[%clk 0:03:00.3]} 5. Nc3 {[%clk 0:02:58.9]}
5... a6 {[%clk 0:03:00.7]} 6. Bg5 {[%clk 0:02:58.7]} 6... e6 {[%clk 0:03:00.6]}
7. f4 {[%clk 0:02:58.1]} 7... Be7 {[%clk 0:03:00.1]} 8. Qf3 {[%clk 0:02:57.9]}
8... Qc7 {[%clk 0:02:54.7]} 9. O-O-O {[%clk 0:02:56.5]} 9... Nbd7 {[%clk
0:02:54.5]} 10. Bd3 {[%clk 0:02:55.7]} 10... b5 {[%clk 0:02:54.3]} 11. Rhe1
{[%clk 0:02:52.4]} 11... Bb7 {[%clk 0:02:54.1]} 12. Qg3 {[%clk 0:02:44.9]} 12...
O-O {[%clk 0:02:50.8]} 13. e5 {[%clk 0:02:29.8]} 13... dxe5 {[%clk 0:02:35.7]}
14. fxe5 {[%clk 0:02:30.7]} 14... Nxe5 {[%clk 0:02:12.3]} 15. Qxe5 {[%clk
0:02:17.4]} 15... Bd6 {[%clk 0:02:09.7]} 16. Qe2 {[%clk 0:02:05.3]} 16... Bxh2
{[%clk 0:02:04.1]} 17. Bxf6 {[%clk 0:02:02.6]} 17... gxf6 {[%clk 0:02:03.5]} 18.
Rh1 {[%clk 0:01:43.1]} 18... f5 {[%clk 0:02:00.9]} 19. Kb1 {[%clk 0:01:40.6]}
19... b4 {[%clk 0:01:55.2]} 20. Qh5 {[%clk 0:01:34.3]} 20... bxc3 {[%clk
0:01:44.3]} 21. Rxh2 {[%clk 0:01:30.5]} 21... f6 {[%clk 0:01:14.8]} 22. Nxe6
{[%clk 0:01:27.4]} 22... Qf7 {[%clk 0:01:15.1]} 23. Nxf8 {[%clk 0:01:23.4]}
23... Rxf8 {[%clk 0:01:13.1]} 24. Qxf5 {[%clk 0:01:18.5]} 1-0